bitfinex/quotes_BTCUSD_20240717
["timestamp","ask_amount","ask_price","bid_price","bid_amount"]
[1721206391409,2.2796717,65320.0,65319.0,0.009196]
[1721206392514,2.2813177,65320.0,65319.0,0.009196]
[1721206392659,2.42777078,65320.0,65319.0,0.009196]
[1721206393271,2.35486509,65320.0,65319.0,0.009196]
[1721206393478,2.42829657,65320.0,65319.0,0.009196]
[1721206393677,2.19754758,65320.0,65319.0,0.009196]
[1721206393883,2.45629666,65320.0,65319.0,0.009196]
[1721206394705,2.2760956,65320.0,65319.0,0.009196]
[1721206395036,2.45666267,65320.0,65319.0,0.009196]
[1721206395239,2.234116,65316.0,65315.0,0.009196]
[1721206395442,2.234116,65316.0,65305.0,0.1422]
[1721206395443,0.203115,65310.0,65305.0,0.1422]
[1721206395567,1.77045373,65310.0,65305.0,0.1422]
[1721206395768,2.68914673,65310.0,65305.0,0.1422]
[1721206395994,2.9164963,65310.0,65305.0,0.1422]
[1721206396211,2.96824818,65310.0,65305.0,0.1422]
[1721206396645,2.96742357,65310.0,65305.0,0.1422]
[1721206396811,2.98142357,65310.0,65305.0,0.1422]
[1721206398144,2.98142357,65310.0,65302.0,0.0612]
[1721206398642,2.98142357,65310.0,65309.0,1e-06]
[1721206399168,2.99542357,65310.0,65309.0,1e-06]
[1721206399528,2.98142357,65310.0,65309.0,1e-06]
[1721206400103,2.04826706,65310.0,65309.0,0.141601]
[1721206400281,1.80906704,65310.0,65309.0,0.141601]
[1721206400606,2.03166704,65310.0,65309.0,0.141601]
[1721206400818,2.04566704,65310.0,65309.0,0.141601]
[1721206401022,2.20001661,65310.0,65309.0,0.141601]
[1721206401395,2.18601661,65310.0,65309.0,0.141601]
[1721206401737,2.54224761,65310.0,65309.0,1e-06]
[1721206401900,2.56524761,65310.0,65309.0,1e-06]
[1721206402059,2.50124761,65310.0,65309.0,1e-06]
[1721206402262,2.49224761,65310.0,65309.0,1e-06]
[1721206402549,2.49224761,65310.0,65309.0,0.144001]
[1721206402672,2.18601661,65310.0,65309.0,0.144001]
[1721206402879,2.04566704,65310.0,65309.0,0.144001]
[1721206403088,2.13812958,65310.0,65309.0,0.144001]
[1721206403287,1.51764262,65310.0,65309.0,0.144001]
[1721206404121,1.51824796,65310.0,65309.0,0.144001]
[1721206404521,0.70818106,65310.0,65309.0,0.144001]
[1721206404850,0.69418106,65310.0,65309.0,0.15171063]
[1721206404992,0.65331273,65310.0,65309.0,0.15171063]
[1721206405349,0.65331273,65310.0,65309.0,0.297119]
[1721206405350,0.03958499,65310.0,65309.0,0.297119]
[1721206405703,0.153104,65315.0,65311.0,0.0802]
[1721206406049,0.153104,65315.0,65309.0,0.153119]
[1721206406050,0.61369374,65315.0,65314.0,0.1468]
[1721206407502,0.61969374,65315.0,65314.0,0.1468]
[1721206407797,0.62469374,65315.0,65314.0,0.1468]
[1721206407996,0.93090174,65315.0,65314.0,0.1468]
[1721206408468,0.96894325,65315.0,65314.0,0.1468]
[1721206408820,1.63785862,65315.0,65314.0,0.1468]
[1721206409018,1.59434338,65315.0,65314.0,0.1468]
[1721206409243,1.26106822,65315.0,65314.0,0.1468]
[1721206409420,1.27516828,65315.0,65314.0,0.1468]
[1721206412734,1.27522718,65315.0,65314.0,0.1468]
[1721206415980,0.98992587,65315.0,65314.0,0.1468]
[1721206417374,1.4333726,65315.0,65314.0,0.1468]
[1721206419159,1.52639586,65315.0,65314.0,0.1468]
[1721206419357,1.52638305,65315.0,65314.0,0.1468]
[1721206420002,2.05519105,65315.0,65314.0,0.1468]
[1721206420175,2.15519105,65315.0,65314.0,0.0645]
[1721206420375,1.071794,65311.0,65310.0,0.0762]
[1721206420554,1.071794,65311.0,65309.0,0.063001]
[1721206420555,0.459346,65310.0,65309.0,0.063001]
[1721206420759,1.07889967,65310.0,65309.0,0.063001]
[1721206420963,1.69136167,65310.0,65309.0,0.063001]
[1721206421169,1.38513067,65310.0,65309.0,0.063001]
[1721206421779,1.40909004,65310.0,65309.0,0.063001]
[1721206422329,1.40911238,65310.0,65309.0,0.063001]
[1721206422670,1.47829733,65310.0,65309.0,0.063001]
[1721206423688,1.6326469,65310.0,65309.0,0.065001]
[1721206423891,1.9388779,65310.0,65309.0,0.065001]
[1721206424237,1.9388779,65310.0,65309.0,0.063001]
[1721206424662,1.9438779,65310.0,65309.0,1e-06]
[1721206425615,1.95111795,65310.0,65309.0,1e-06]
[1721206426004,1.79676838,65310.0,65309.0,1e-06]
[1721206428704,1.72744926,65310.0,65309.0,1e-06]
[1721206428924,1.79696377,65310.0,65309.0,1e-06]
[1721206432105,1.79717046,65310.0,65309.0,1e-06]
[1721206433129,1.79717046,65310.0,65309.0,0.142001]
[1721206433130,1.49093946,65310.0,65309.0,0.142001]
[1721206434973,1.49096514,65310.0,65309.0,0.142001]
[1721206435176,1.43193116,65310.0,65309.0,0.142001]
[1721206435426,1.49114397,65310.0,65309.0,0.142001]
[1721206438006,1.64549354,65310.0,65309.0,0.142001]
[1721206438251,1.95172454,65310.0,65309.0,1e-06]
[1721206438521,1.94809345,65310.0,65309.0,1e-06]
[1721206440584,1.48751288,65310.0,65309.0,1e-06]
[1721206441102,1.48755638,65310.0,65309.0,0.143301]
[1721206444102,1.48771883,65310.0,65309.0,0.143301]
[1721206445227,1.5565342,65310.0,65309.0,0.143301]
[1721206446196,1.48771883,65310.0,65309.0,0.143301]
[1721206446393,1.55530511,65310.0,65309.0,0.143301]
[1721206446611,1.64705894,65310.0,65309.0,0.143301]
[1721206446739,1.57947266,65310.0,65309.0,0.143301]
[1721206447159,1.36214911,65310.0,65309.0,0.143301]
[1721206447386,1.48788914,65310.0,65309.0,0.143301]
[1721206448053,1.60268301,65310.0,65309.0,0.143301]
[1721206450467,1.42860922,65310.0,65309.0,0.143301]
[1721206450703,1.60273581,65310.0,65309.0,0.143301]
[1721206451974,1.75708538,65310.0,65309.0,0.060201]
[1721206453679,2.06331638,65310.0,65309.0,1e-06]
[1721206453888,1.82272968,65310.0,65309.0,1e-06]
[1721206454075,1.94840517,65310.0,65309.0,1e-06]
[1721206455446,1.7940556,65310.0,65309.0,1e-06]
[1721206456979,1.36214911,65310.0,65309.0,1e-06]
[1721206457188,0.7754818,65310.0,65309.0,0.142101]
[1721206457391,0.38378378,65310.0,65309.0,0.142101]
[1721206457587,0.62194006,65310.0,65309.0,0.142101]
[1721206457823,0.62194006,65310.0,65309.0,0.14814487]
[1721206458550,0.55545253,65310.0,65309.0,0.14814487]
[1721206459761,0.24922153,65310.0,65309.0,0.14814487]
[1721206459973,0.09610653,65310.0,65309.0,0.14814487]
[1721206460157,0.09588388,65310.0,65309.0,0.14814487]
[1721206461390,0.08888388,65310.0,65309.0,0.14814487]
[1721206461511,0.08388388,65310.0,65309.0,0.14814487]
[1721206461713,0.08588388,65310.0,65309.0,0.14814487]
[1721206461987,0.23899888,65310.0,65309.0,0.15014487]
[1721206462507,0.23899888,65310.0,65309.0,0.144101]
[1721206462823,0.23899888,65310.0,65309.0,0.15014487]
[1721206463021,0.23699888,65310.0,65309.0,0.15014487]
[1721206463450,0.02579937,65310.0,65309.0,0.15014487]
[1721206463656,0.08487893,65310.0,65309.0,0.15023687]
[1721206465703,0.08487893,65310.0,65309.0,0.30335487]
[1721206466640,0.08481396,65310.0,65309.0,0.30335487]
[1721206467866,0.08481396,65310.0,65309.0,0.91582687]
[1721206468046,0.08481396,65310.0,65309.0,1.44944461]
[1721206468047,0.02276142,65310.0,65309.0,1.44944461]
[1721206468263,0.06890168,65327.0,65318.0,0.906985]
[1721206468484,0.42097214,65331.0,65318.0,1.286179]
[1721206468485,0.46304871,65330.0,65318.0,1.286179]
[1721206468666,0.06890168,65331.0,65318.0,1.236179]
[1721206468892,0.06890168,65331.0,65318.0,1.286179]
[1721206469096,0.04918773,65332.0,65318.0,1.3350312]
[1721206469294,0.4798,65330.0,65327.0,0.459228]
[1721206469498,0.04918773,65332.0,65329.0,0.0632]
[1721206469702,1.153062,65333.0,65329.0,0.0632]
[1721206469703,0.03557929,65331.0,65329.0,0.0632]
[1721206470002,1.153062,65333.0,65330.0,0.00615868]
[1721206470223,1.153062,65333.0,65329.0,0.0632]
[1721206470224,0.153067,65331.0,65329.0,0.0632]
[1721206470707,1.306127,65333.0,65329.0,0.0632]
[1721206470708,1.153062,65333.0,65329.0,0.0632]
[1721206471039,0.04956943,65332.0,65330.0,0.00615868]
[1721206471248,0.014,65332.0,65330.0,0.00615868]
[1721206471471,0.014,65332.0,65329.0,0.0632]
[1721206471845,0.014,65332.0,65330.0,0.00615868]
[1721206472026,0.014,65332.0,65331.0,0.1401]
[1721206472812,1.163062,65333.0,65331.0,0.1401]
[1721206473292,0.014,65332.0,65331.0,0.1401]
[1721206473521,1.163062,65333.0,65331.0,0.1401]
[1721206474002,1.168062,65333.0,65331.0,0.1401]
[1721206475018,0.153064,65332.0,65331.0,0.1401]
[1721206475244,0.459192,65332.0,65331.0,0.1401]
[1721206475456,0.153074,65328.0,65325.0,0.0629]
[1721206475694,0.153073,65329.0,65325.0,0.0629]
[1721206475907,0.153073,65329.0,65327.0,0.0646]
[1721206476325,0.016,65332.0,65328.0,0.15924492]
[1721206476570,0.004,65332.0,65329.0,0.1443]
[1721206476784,1.0,65333.0,65332.0,0.306128]
[1721206476994,1.0,65333.0,65332.0,0.600292]
[1721206477206,1.0,65333.0,65332.0,0.60643644]
[1721206478310,1.01853492,65333.0,65332.0,0.60643644]
[1721206478721,1.01853492,65333.0,65332.0,0.600292]
[1721206478918,1.01853492,65333.0,65332.0,0.90642]
[1721206479062,1.02353492,65333.0,65332.0,0.91256444]
[1721206479279,1.02354916,65333.0,65332.0,0.91256444]
[1721206479480,1.02354916,65333.0,65332.0,1.21869244]
[1721206479481,1.005,65333.0,65332.0,1.21869244]
[1721206479943,1.008,65333.0,65332.0,1.24169244]
[1721206482609,1.008,65333.0,65332.0,1.29169244]
[1721206483241,1.008,65333.0,65332.0,1.79481025]
[1721206483413,1.008,65333.0,65332.0,1.87929567]
[1721206483649,1.008,65333.0,65332.0,2.22803174]
[1721206483864,0.7082,65333.0,65332.0,2.3599418]
[1721206484086,0.70780918,65333.0,65332.0,2.3599418]
[1721206484364,0.70780918,65333.0,65332.0,2.39186652]
[1721206484567,0.62450918,65333.0,65332.0,2.39186652]
[1721206484778,0.62450918,65333.0,65332.0,2.35995646]
[1721206484956,0.008,65333.0,65332.0,2.35995646]
[1721206485197,0.008,65333.0,65332.0,2.36272743]
[1721206485408,0.005,65333.0,65332.0,2.36272743]
[1721206485629,0.005,65333.0,65332.0,2.36671447]
[1721206485833,0.00084,65345.0,65344.0,1.268052]
[1721206486048,0.00084,65345.0,65344.0,1.79411381]
[1721206486252,0.00084,65345.0,65344.0,1.79924886]
[1721206487217,0.00184,65345.0,65344.0,1.80524886]
[1721206487429,0.00184,65345.0,65344.0,1.84017358]
[1721206487785,0.00184,65345.0,65344.0,1.94017358]
[1721206487987,0.00184,65345.0,65344.0,2.37331128]
[1721206488700,0.00184,65345.0,65344.0,2.3733086]
[1721206488915,0.00184,65345.0,65344.0,2.40913533]
[1721206489308,0.00184,65345.0,65344.0,2.03231188]
[1721206489550,0.00284,65345.0,65344.0,2.04631188]
[1721206490329,0.00284,65345.0,65344.0,2.0847366]
[1721206490530,0.00284,65345.0,65344.0,2.12056333]
[1721206490950,0.00284,65345.0,65344.0,2.42663533]
[1721206491921,0.00284,65345.0,65344.0,2.42663364]
[1721206492155,0.00084,65359.0,65358.0,1.491627]
[1721206492372,0.00084,65359.0,65358.0,1.93655014]
[1721206492578,0.00084,65359.0,65358.0,2.11379108]
[1721206492915,0.00084,65359.0,65358.0,2.81979708]
[1721206493117,0.00084,65359.0,65358.0,2.91979708]
[1721206493314,0.00084,65359.0,65358.0,3.22580308]
[1721206493619,0.00084,65359.0,65358.0,3.23080308]
[1721206493620,0.00184,65359.0,65358.0,3.23080308]
[1721206494021,0.52928787,65374.0,65373.0,1.566012]
[1721206494376,0.04948787,65374.0,65373.0,1.74892107]
[1721206494543,0.00836,65376.0,65375.0,1.070744]
[1721206494866,0.00836,65376.0,65375.0,1.2536417]
[1721206495308,0.00836,65376.0,65375.0,1.3036417]
[1721206495889,0.00836,65376.0,65375.0,1.2536417]
[1721206496244,0.08476,65376.0,65375.0,0.46440596]
[1721206496448,0.543643,65376.0,65375.0,0.00551596]
[1721206496649,0.543643,65376.0,65375.0,0.01551596]
[1721206496854,0.543643,65376.0,65375.0,0.01]
[1721206496855,0.237721,65376.0,65375.0,0.01]
[1721206497244,0.543643,65376.0,65375.0,0.01]
[1721206497450,0.543643,65376.0,65369.0,0.152975]
[1721206497451,0.152967,65374.0,65369.0,0.152975]
[1721206497649,0.152967,65374.0,65373.0,0.014]
[1721206497861,0.764831,65374.0,65373.0,0.01952733]
[1721206498116,1.36444474,65374.0,65373.0,0.01952733]
[1721206498319,1.36444474,65374.0,65356.0,0.00277097]
[1721206498320,0.21728174,65374.0,65356.0,0.00277097]
[1721206498568,0.21728174,65374.0,65354.0,0.179511]
[1721206498569,0.1393,65364.0,65358.0,0.153002]
[1721206498767,0.1393,65364.0,65359.0,0.153]
[1721206498768,0.292289,65364.0,65359.0,0.153]
[1721206498917,0.152991,65363.0,65359.0,0.15860699]
[1721206499251,0.292289,65364.0,65359.0,0.15860699]
[1721206500036,0.292289,65364.0,65359.0,0.16260699]
[1721206500445,0.292289,65364.0,65359.0,0.15860699]
[1721206500650,0.07717479,65363.0,65359.0,0.00560699]
[1721206500862,0.07717479,65363.0,65359.0,0.00860699]
[1721206500863,0.901392,65360.0,65359.0,0.00860699]
[1721206501070,0.901392,65360.0,65359.0,0.003]
[1721206501071,1.05577374,65360.0,65359.0,0.003]
[1721206501691,1.36177074,65360.0,65359.0,0.007]
[1721206502117,1.05577374,65360.0,65359.0,0.007]
[1721206502325,0.595395,65360.0,65359.0,0.004]
[1721206502743,1.05577374,65360.0,65359.0,0.004]
[1721206503285,1.06177374,65360.0,65359.0,0.004]
[1721206503922,1.06377374,65360.0,65359.0,0.004]
[1721206504039,1.06377374,65360.0,65345.0,0.30883697]
[1721206504040,0.153018,65352.0,65345.0,0.30883697]
[1721206504242,0.153018,65352.0,65348.0,0.153026]
[1721206504441,0.153018,65352.0,65349.0,0.00843487]
[1721206505488,0.306012,65357.0,65349.0,0.00843487]
[1721206505693,0.306012,65357.0,65349.0,0.0056639]
[1721206505694,0.153022,65350.0,65349.0,0.0056639]
[1721206505894,0.153019,65352.0,65349.0,0.0056639]
[1721206506106,0.153019,65352.0,65347.0,0.153027]
[1721206506267,0.153019,65352.0,65348.0,0.00277097]
[1721206506627,0.306044,65350.0,65349.0,0.006]
[1721206506851,0.306044,65350.0,65348.0,0.00844056]
[1721206506852,0.290324,65349.0,65348.0,0.00566959]
[1721206507085,0.290324,65349.0,65333.0,0.1968496]
[1721206507086,0.765157,65346.0,65345.0,0.008]
[1721206507454,0.153044,65341.0,65337.0,0.00277097]
[1721206507656,0.153044,65341.0,65338.0,0.00572653]
[1721206507859,0.306081,65343.0,65339.0,0.00277097]
[1721206507860,0.153045,65340.0,65339.0,0.00277097]
[1721206508064,0.153045,65340.0,65331.0,0.306129]
[1721206508065,0.153052,65337.0,65336.0,0.00277097]
[1721206508240,0.15306,65334.0,65330.0,0.153068]
[1721206508447,0.153059,65334.0,65331.0,0.00277097]
[1721206509991,0.153059,65334.0,65331.0,0.01377097]
[1721206509992,0.154059,65334.0,65331.0,0.01377097]
[1721206510349,0.001,65334.0,65331.0,0.01377097]
[1721206510758,0.306128,65332.0,65331.0,0.01377097]
[1721206510970,0.459192,65332.0,65331.0,0.01377097]
[1721206511186,0.84522,65332.0,65331.0,0.011]
[1721206511388,0.84522,65332.0,65331.0,0.01676639]
[1721206511583,0.84522,65332.0,65331.0,0.025]
[1721206512176,0.84522,65332.0,65331.0,0.011]
[1721206512720,0.84522,65332.0,65323.0,0.00277097]
[1721206512721,0.153076,65327.0,65323.0,0.00277097]
[1721206513123,0.153076,65327.0,65324.0,0.00580627]
[1721206513325,0.153076,65327.0,65325.0,0.00277097]
[1721206513728,0.153076,65327.0,65326.0,0.00579487]
[1721206514154,0.153076,65327.0,65323.0,0.00277097]
[1721206514352,0.153078,65326.0,65324.0,0.013]
[1721206514707,0.153078,65326.0,65325.0,0.00277097]
[1721206514912,0.153078,65326.0,65324.0,0.00580627]
[1721206515089,0.153078,65326.0,65325.0,0.00857154]
[1721206515418,0.306145,65329.0,65325.0,0.00857154]
[1721206515419,0.154076,65327.0,65325.0,0.00580057]
[1721206515621,0.154076,65327.0,65326.0,0.00277097]
[1721206515622,0.153076,65327.0,65326.0,0.00277097]
[1721206515827,0.153076,65327.0,65324.0,0.00277097]
[1721206516025,0.153076,65327.0,65326.0,0.00579487]
[1721206516178,0.153076,65327.0,65326.0,0.013]
[1721206516179,0.154076,65327.0,65326.0,0.013]
[1721206516390,0.459228,65327.0,65326.0,0.00579487]
[1721206516755,1.36591374,65327.0,65326.0,0.00579487]
[1721206517055,1.36691374,65327.0,65326.0,0.00579487]
[1721206517255,0.76539,65326.0,65325.0,0.012]
[1721206517834,0.153095,65319.0,65316.0,0.00277097]
[1721206518011,0.153095,65319.0,65315.0,0.153103]
[1721206518012,0.153095,65319.0,65315.0,0.00277097]
[1721206518212,0.153095,65319.0,65316.0,0.00585185]
[1721206518398,0.153095,65319.0,65317.0,0.00277097]
[1721206518604,0.153095,65319.0,65318.0,0.00584045]
[1721206519085,0.153092,65321.0,65316.0,0.153101]
[1721206519260,0.153092,65320.0,65318.0,0.00584045]
[1721206519711,0.153092,65320.0,65315.0,0.153103]
[1721206519904,0.153092,65320.0,65307.0,0.370344]
[1721206519905,0.384484,65320.0,65319.0,0.00583475]
[1721206520120,0.384484,65320.0,65316.0,0.00277097]
[1721206520121,0.153107,65314.0,65310.0,0.154038]
[1721206520289,0.153107,65314.0,65311.0,0.00277097]
[1721206520454,0.153107,65314.0,65311.0,0.00865131]
[1721206521817,0.154107,65314.0,65311.0,0.01965131]
[1721206522023,0.001,65314.0,65313.0,0.612434]
[1721206522231,0.001,65314.0,65313.0,0.94021094]
[1721206522439,0.001,65314.0,65313.0,1.24642794]
[1721206523754,0.002,65314.0,65313.0,1.24642794]
[1721206524000,0.001,65314.0,65313.0,1.24642794]
[1721206524173,0.306161,65326.0,65321.0,0.153089]
[1721206524174,0.153078,65326.0,65321.0,0.153089]
[1721206524581,0.153081,65325.0,65322.0,0.00858863]
[1721206524757,0.153081,65325.0,65322.0,0.00581766]
[1721206525167,0.153081,65325.0,65320.0,0.153091]
[1721206525366,0.153081,65325.0,65323.0,0.00581196]
[1721206525594,0.153081,65325.0,65320.0,0.153091]
[1721206525945,0.153081,65325.0,65321.0,0.00277097]
[1721206526097,0.153081,65325.0,65321.0,0.00859433]
[1721206526298,0.153081,65325.0,65321.0,0.00582336]
[1721206526499,0.309159,65326.0,65321.0,0.00582336]
[1721206526698,0.153083,65324.0,65321.0,0.00582336]
[1721206526919,0.153085,65323.0,65321.0,0.001]
[1721206527108,0.153085,65323.0,65322.0,0.00581766]
[1721206527305,0.765425,65323.0,65322.0,0.00581766]
[1721206527621,0.30617,65323.0,65317.0,0.15586997]
[1721206527846,0.003,65326.0,65317.0,0.00277097]
[1721206527847,0.306177,65322.0,65317.0,0.00277097]
[1721206528055,0.306177,65322.0,65318.0,0.00584045]
[1721206528056,0.153093,65320.0,65318.0,0.00584045]
[1721206528260,0.153094,65319.0,65318.0,0.00584045]
[1721206528461,0.1401,65321.0,65312.0,0.00277097]
[1721206528691,0.1401,65321.0,65310.0,0.000924]
[1721206528692,0.153102,65316.0,65311.0,0.00277097]
[1721206528909,0.306195,65318.0,65317.0,0.001]
[1721206528910,0.459294,65318.0,65317.0,0.001]
[1721206529461,0.459294,65318.0,65317.0,0.00684615]
[1721206530271,0.459294,65318.0,65317.0,0.00584615]
[1721206530667,0.153102,65316.0,65313.0,0.00277097]
[1721206530923,0.153102,65316.0,65314.0,0.00586324]
[1721206531230,0.153102,65316.0,65315.0,0.00277097]
[1721206531436,0.153099,65318.0,65315.0,0.00277097]
[1721206531729,0.153099,65318.0,65315.0,0.00862851]
[1721206531893,0.154099,65318.0,65317.0,0.006]
[1721206532293,0.154099,65318.0,65317.0,0.01184615]
[1721206532536,0.153099,65318.0,65317.0,0.00584615]
[1721206533292,0.154099,65318.0,65315.0,0.006]
[1721206533499,0.154099,65318.0,65317.0,0.00584615]
[1721206533815,0.154099,65318.0,65316.0,0.00277097]
[1721206533816,0.154099,65318.0,65316.0,0.00585185]
[1721206533995,0.154099,65318.0,65317.0,0.00861712]
[1721206534198,0.460293,65318.0,65317.0,0.00884615]
[1721206534603,0.460293,65318.0,65317.0,0.003]
[1721206534959,0.459293,65318.0,65317.0,0.003]
[1721206535106,0.460293,65318.0,65317.0,0.009]
[1721206535298,0.460293,65318.0,65317.0,0.01484615]
[1721206536816,0.460293,65318.0,65317.0,0.009]
[1721206537813,1.30906274,65318.0,65317.0,0.009]
[1721206538013,1.37236274,65318.0,65317.0,0.009]
[1721206538355,1.73286374,65318.0,65317.0,0.009]
[1721206538515,2.05546374,65318.0,65317.0,0.009]
[1721206538904,2.09475561,65318.0,65317.0,0.009]
[1721206539108,2.05546374,65318.0,65317.0,0.009]
[1721206539290,2.11871492,65318.0,65317.0,0.009]
[1721206539488,2.03944934,65318.0,65317.0,0.003]
[1721206539710,1.84384034,65318.0,65317.0,0.003]
[1721206539922,1.84384034,65318.0,65317.0,0.001]
[1721206539923,1.50432144,65318.0,65317.0,0.001]
[1721206540267,1.51632144,65318.0,65317.0,0.002]
[1721206540471,1.82251544,65318.0,65317.0,0.002]
[1721206540671,1.82251544,65318.0,65317.0,0.001]
[1721206540672,1.50432144,65318.0,65317.0,0.001]
[1721206541025,1.51632144,65318.0,65317.0,0.002]
[1721206541624,1.50732144,65318.0,65317.0,0.001]
[1721206541927,1.61477976,65318.0,65317.0,0.002]
[1721206542089,1.83737976,65318.0,65317.0,0.002]
[1721206542488,1.83737976,65318.0,65317.0,0.001]
[1721206542489,2.43576776,65318.0,65317.0,0.001]
[1721206542715,2.43576776,65318.0,65317.0,0.002]
[1721206542716,2.47503177,65318.0,65317.0,0.002]
[1721206542913,1.378021,65311.0,65310.0,0.000924]
[1721206543145,2.16226354,65311.0,65310.0,0.000924]
[1721206543939,2.01946144,65311.0,65310.0,0.000924]
[1721206544551,2.02646144,65311.0,65310.0,0.001924]
[1721206545148,2.07646144,65311.0,65310.0,0.001924]
[1721206545395,2.02946144,65311.0,65310.0,0.001924]
[1721206545674,2.07946144,65311.0,65310.0,0.001924]
[1721206545846,2.18381101,65311.0,65310.0,0.001924]
[1721206546057,2.02946144,65311.0,65310.0,0.001924]
[1721206549682,2.00550274,65311.0,65310.0,0.001924]
[1721206551393,1.78290274,65311.0,65310.0,0.001924]
[1721206556509,1.10594874,65311.0,65310.0,0.001924]
[1721206556755,1.02994874,65311.0,65310.0,0.001924]
[1721206557002,0.31749474,65311.0,65310.0,0.001924]
[1721206557521,0.31749474,65311.0,65310.0,0.00781004]
[1721206557780,0.31749474,65311.0,65310.0,0.16092504]
[1721206557781,0.01,65311.0,65310.0,0.16092504]
[1721206558011,0.01,65311.0,65310.0,0.155039]
[1721206558240,0.01,65311.0,65310.0,0.53235604]
[1721206558732,0.01,65311.0,65310.0,0.60755604]
[1721206559688,0.01,65311.0,65310.0,0.30132504]
[1721206559932,0.163113,65311.0,65310.0,0.07301004]
[1721206560263,1.05518084,65311.0,65310.0,0.00781004]
[1721206560515,1.31447574,65311.0,65310.0,0.001924]
[1721206561709,1.31147574,65311.0,65310.0,0.001924]
[1721206561959,1.84030274,65311.0,65310.0,0.003924]
[1721206562216,1.93014558,65311.0,65310.0,0.003924]
[1721206562469,2.03014558,65311.0,65310.0,0.003924]
[1721206562692,2.10410629,65311.0,65310.0,0.001924]
[1721206562915,2.05410629,65311.0,65310.0,0.001924]
[1721206563146,1.78020274,65311.0,65310.0,0.001924]
[1721206563366,1.78940974,65311.0,65310.0,0.001924]
[1721206564208,1.79240974,65311.0,65310.0,0.001924]
[1721206564968,1.48618274,65311.0,65310.0,0.001924]
[1721206565196,1.41447574,65311.0,65310.0,0.001924]
[1721206565612,1.10824874,65311.0,65310.0,0.001924]
[1721206565925,1.41447574,65311.0,65310.0,0.001924]
[1721206566910,1.10824874,65311.0,65310.0,0.001924]
[1721206567121,0.01,65311.0,65310.0,0.001924]
[1721206567318,0.01,65311.0,65310.0,0.835463]
[1721206567544,0.01,65311.0,65310.0,1.161632]
[1721206567920,0.01,65311.0,65310.0,1.16751804]
[1721206568330,0.00084,65317.0,65314.0,0.153104]
[1721206568531,0.00084,65317.0,65316.0,0.00277097]
[1721206568750,0.00084,65317.0,65315.0,0.15896054]
[1721206568951,0.00084,65317.0,65316.0,0.00862282]
[1721206569150,0.00084,65317.0,65316.0,0.00585185]
[1721206570337,0.00084,65317.0,65316.0,0.00685185]
[1721206570338,0.00784,65317.0,65316.0,0.00685185]
[1721206570540,0.160939,65317.0,65316.0,0.00685185]
[1721206570758,0.160939,65317.0,65316.0,0.001]
[1721206570759,0.00784,65317.0,65316.0,0.001]
[1721206570959,0.01084,65317.0,65316.0,0.001]
[1721206571220,0.01084,65317.0,65316.0,0.00685185]
[1721206571221,0.71628652,65317.0,65316.0,0.00685185]
[1721206571413,0.71628652,65317.0,65316.0,0.001]
[1721206571414,1.31561474,65317.0,65316.0,0.001]
[1721206571617,1.00941674,65317.0,65316.0,0.001]
[1721206571847,0.01084,65317.0,65316.0,0.001]
[1721206572253,0.01084,65317.0,65316.0,0.00962282]
[1721206572366,0.01084,65317.0,65316.0,0.00685185]
[1721206574194,0.163939,65317.0,65316.0,0.00685185]
[1721206575289,1.00789153,65317.0,65316.0,0.00685185]
[1721206575489,1.16112343,65317.0,65316.0,0.00685185]
[1721206575689,1.16112343,65317.0,65316.0,0.001]
[1721206576042,1.00631674,65317.0,65316.0,0.001]
[1721206576241,0.62451874,65317.0,65316.0,0.001]
[1721206577667,0.93071674,65317.0,65316.0,0.001]
[1721206578101,2.00341274,65317.0,65316.0,0.001]
[1721206578248,2.02737053,65317.0,65316.0,0.001]
[1721206578447,2.28731868,65317.0,65316.0,0.001]
[1721206578656,2.21864513,65317.0,65316.0,0.001]
[1721206578900,2.68929905,65317.0,65316.0,0.001]
[1721206579088,2.57184313,65317.0,65316.0,0.001]
[1721206579287,2.21564513,65317.0,65316.0,0.001]
[1721206579972,2.17584295,65317.0,65316.0,0.001]
[1721206580173,2.06129556,65317.0,65316.0,0.001]
[1721206580394,1.071794,65311.0,65310.0,0.000924]
[1721206580592,1.35013353,65311.0,65310.0,0.000924]
[1721206580820,1.37255564,65311.0,65310.0,0.000924]
[1721206581021,1.43173353,65311.0,65310.0,0.000924]
[1721206581785,1.43973353,65311.0,65310.0,0.000924]
[1721206582109,1.44473353,65311.0,65310.0,0.000924]
[1721206585086,0.75067953,65311.0,65310.0,0.000924]
[1721206585301,1.05690653,65311.0,65310.0,0.000924]
[1721206586463,0.75067953,65311.0,65310.0,0.000924]
[1721206586816,1.36313353,65311.0,65310.0,0.000924]
[1721206587027,1.40068866,65311.0,65310.0,0.000924]
[1721206587226,1.55503823,65311.0,65310.0,0.000924]
[1721206587847,1.40068866,65311.0,65310.0,0.000924]
[1721206588251,1.36313353,65311.0,65310.0,0.000924]
[1721206591156,1.4795874,65311.0,65310.0,0.000924]
[1721206591985,1.44233353,65311.0,65310.0,0.000924]
[1721206592606,1.78568998,65311.0,65310.0,0.000924]
[1721206593386,1.47946298,65311.0,65310.0,0.000924]
[1721206593589,1.78568998,65311.0,65310.0,0.000924]
[1721206593797,1.93534897,65311.0,65310.0,0.000924]
[1721206594419,1.99924897,65311.0,65310.0,0.000924]
[1721206594788,1.69302197,65311.0,65310.0,0.000924]
[1721206595630,1.69311241,65311.0,65310.0,0.000924]
[1721206596293,1.61223136,65311.0,65310.0,0.000924]
[1721206597767,1.50623353,65311.0,65310.0,0.000924]
[1721206598195,1.61226651,65311.0,65310.0,0.000924]
[1721206598968,1.61241833,65311.0,65310.0,0.000924]
[1721206599469,1.91864533,65311.0,65310.0,0.000924]
[1721206599667,1.61241833,65311.0,65310.0,0.000924]
[1721206602094,1.50623353,65311.0,65310.0,0.000924]
[1721206602297,1.61288784,65311.0,65310.0,0.000924]
[1721206605319,1.57502577,65311.0,65310.0,0.000924]
[1721206605483,1.54888787,65311.0,65310.0,0.000924]
[1721206606319,0.78844163,65311.0,65310.0,0.067124]